[Event "21st Alekhine FIDE 2017"]
[Site "Voronezh"]
[Date "2017.06.18"]
[Round "7"]
[White "Kondaurov, Yury"]
[Black "Maratkanov, Evgeny"]
[Result "1-0"]
[ECO "A06"]
[WhiteElo "2046"]
[BlackElo "2145"]
[Annotator "NA"]
[PlyCount "95"]
[EventDate "2017.??.??"]
[EventType "swiss"]
[EventCountry "RUS"]
[SourceTitle "playchess.com"]
[Source "ChessBase"]
[SourceQuality "1"]
[TimeControl "40/5400+30:1800+30"]

{[%evp 14,94,4,-10,-14,-19,-9,12,39,32767,54,8,72,73,94,79,117,75,129,72,80,87,95,34,152,95,118,32767,32767,112,118,103,133,90,283,32767,223,249,275,280,332,32767,32767,32767,32767,151,123,32767,32767,32767,32767,32767,32767,32767,32767,32767,261,32767,32767,32767,32767,150,32767,32767,32767,32767,32767,32767,32767,32767,427,32767,32767,32767,32767,32767,32767,32767,32767,32767,32767,32767,29998]} 1. Nf3 {[%emt 0:00:00]} d5 {[%emt 0:04:59]} 2. g3 {[%emt 0:00:00]} c5 {[%emt 0:00:15]} 3. c4 {[%emt 0:00:00]} Nf6 {[%emt 0:00:13]} 4. Bg2 {[%emt 0:00:00]} Nc6 {[%emt 0:00:10]} 5. O-O {[%emt 0:00:40]} e5 {[%emt 0:00:26]} 6. cxd5 {[%emt 0:00:33]} Nxd5 {[%emt 0:00:02]} 7. Nc3 {[%emt 0:00:12]} Nc7 {[%emt 0:01:02]} 8. b3 {[%emt 0:01:18]} Be7 {[%emt 0:00:16]} 9. Bb2 {[%emt 0:00:03]} Be6 {[%emt 0:01:26] A34: Symmetrical English: 2 Nc3, lines with ...d5} (9... O-O 10. Rc1 f6 11. Ne1 Bd7 12. Nd3 Rc8 13. f4 exf4 14. Nxf4 Be8 15. e3 Bf7 16. Qe2 Re8 17. Ne4 Nb4 18. a3 Nba6 19. Nh5 {1-0 (28) Aronian,L (2815)-Svidler,P (2753) Flor & Fjaere 2014}) 10. Rc1 {[%emt 0:00:04] LiveBook: 3 Games} f6 {[%emt 0:01:25]} 11. e3 {[%emt 0:01:22]} Qd7 {[%emt 0:03:01]} 12. Na4 $146 {[%emt 0:00:38]} ({Predecessor:} 12. Ne4 Bg4 13. h3 Bxh3 14. Nxe5 Nxe5 15. Qh5+ g6 16. Qxh3 Qxh3 17. Bxh3 Nd3 18. Bxf6 Bxf6 19. Nxf6+ Kf7 20. Rc3 Ne5 21. Ne4 b6 22. f4 Nc6 23. Bg2 {1-0 (23) McNab,C (2418)-Misiuga,A (2153) Reykjavik 2007}) 12... e4 {[%emt 0:50:52]} (12... Bg4 $11 {keeps the balance.} 13. h3 (13. Nxc5 Bxc5 14. Rxc5 e4 $17) 13... Bxh3) 13. Ne1 {[%emt 0:00:39]} Bg4 {[%emt 0:00:14]} 14. Qc2 {[%emt 0:37:31]} Be2 {[%emt 0:00:15]} 15. Qxe4 {[%emt 0:04:07]} Bxf1 {[%emt 0:00:39]} 16. Kxf1 {[%emt 0:00:24]} O-O {[%emt 0:07:09]} 17. d3 {[%emt 0:02:48]} Na6 {[%emt 0:02:54]} 18. Ba3 {[%emt 0:02:03]} ({White should try} 18. Qd5+ $16 Qxd5 19. Bxd5+ Kh8 20. Bxc6 bxc6 21. Ba3) 18... Ncb4 {[%emt 0:02:37]} (18... Rac8 $14) 19. Qxb7 {[%emt 0:05:17]} Rad8 {[%emt 0:02:49]} 20. Qe4 {[%emt 0:05:41]} Rfe8 {[%emt 0:02:25]} 21. Qc4+ {[%emt 0:02:03]} Kh8 {[%emt 0:00:08]} 22. Rd1 {[%emt 0:00:19]} Qf5 {[%emt 0:03:22]} 23. g4 {[%emt 0:03:12]} Qe5 $2 {[%emt 0:03:26]} (23... Qc8 $16) 24. Kg1 {[%emt 0:01:55]} Bd6 {[%emt 0:01:29] [#]} (24... Qd6 $16 {might work better.}) 25. Bxb4 $1 {[%emt 0:04:34]} Nxb4 {[%emt 0:02:41] [#]} 26. a3 $1 {[%emt 0:00:05]} Na2 {[%emt 0:08:35]} 27. Qc2 {[%emt 0:00:13]} Qxh2+ {[%emt 0:00:05]} 28. Kf1 {[%emt 0:00:04]} Qh4 {[%emt 0:00:02]} 29. Bf3 {[%emt 0:03:16]} Qh3+ {[%emt 0:00:01]} 30. Ke2 {[%emt 0:01:52]} f5 {[%emt 0:00:01]} 31. gxf5 {[%emt 0:00:58]} Qxf5 {[%emt 0:00:02]} 32. Qxa2 {[%emt 0:00:27]} g5 {[%emt 0:01:16]} 33. Qb2+ {[%emt 0:01:18]} Be5 {[%emt 0:00:02]} 34. Qc2 {[%emt 0:00:01]} Rf8 {[%emt 0:01:19]} 35. Qc4 {[%emt 0:01:42]} h5 {[%emt 0:00:02]} 36. Qe4 {[%emt 0:00:45]} Qf6 {[%emt 0:00:11]} 37. Kd2 {[%emt 0:02:02]} g4 {[%emt 0:01:13]} 38. Be2 {[%emt 0:00:19]} c4 {[%emt 0:00:11]} 39. bxc4 {[%emt 0:00:38]} Rfe8 {[%emt 0:01:45]} 40. Qh1 {[%emt 0:00:20]} Qg5 {[%emt 0:30:02]} 41. Rb1 {[%emt 0:31:11]} Rb8 {[%emt 0:00:29]} 42. Rxb8 {[%emt 0:02:32]} Rxb8 {[%emt 0:00:01]} 43. Qe4 {[%emt 0:00:21]} Bg7 {[%emt 0:01:17]} 44. d4 {[%emt 0:00:23]} Qa5+ {[%emt 0:00:09]} 45. Nc3 {[%emt 0:00:09]} Rb2+ {[%emt 0:01:00]} 46. Nc2 {[%emt 0:00:03]} Qxa3 {[%emt 0:00:22]} 47. Qe8+ {[%emt 0:00:40]} Kh7 {[%emt 0:01:08]} 48. Bd3+ {[%emt 0:00:11]} 1-0

[Event "21st Alekhine FIDE 2017"]
[Site "Voronezh"]
[Date "2017.06.18"]
[Round "7"]
[White "Moiseenko, Andrey"]
[Black "Novikov, Sergey D"]
[Result "1/2-1/2"]
[ECO "B70"]
[WhiteElo "2010"]
[BlackElo "2061"]
[Annotator "NA RC"]
[PlyCount "57"]
[EventDate "2017.??.??"]
[EventType "swiss"]
[EventCountry "RUS"]
[SourceTitle "playchess.com"]
[Source "ChessBase"]
[SourceQuality "1"]
[TimeControl "40/5400+30:1800+30"]

{[%evp 8,57,42,32767,32767,32767,32767,32767,22,22,20,10,17,32767,32767,32767,23,30,22,14,38,27,14,2,0,-33,-14,-43,-39,-45,-42,-43,0,0,0,0,0,18,8,14,7,0,0,0,10,32767,32767,32767,32767,32767,32767,0]} 1. e4 {[%emt 0:00:00]} c5 {[%emt 0:00:02]} 2. Nf3 {[%emt 0:00:00]} d6 {[%emt 0:00:02]} 3. d4 {[%emt 0:00:00]} cxd4 {[%emt 0:00:03]} 4. Nxd4 {[%emt 0:00:00]} Nf6 {[%emt 0:00:03]} 5. Nc3 {[%emt 0:00:09]} g6 {[%emt 0:00:02]} 6. Be2 {[%emt 0:00:08]} Bg7 {[%emt 0:00:02]} 7. O-O {[%emt 0:00:01]} O-O {[%emt 0:00:07]} 8. Re1 {[%emt 0:00:14] LiveBook: 284 Games} Nc6 {[%emt 0:00:02]} 9. Nb3 {[%emt 0:00:06]} Be6 {[%emt 0:01:31]} 10. Bf1 {[%emt 0:01:33]} Rc8 {[%emt 0:00:54]} 11. Bg5 {[%emt 0:00:14] B70: Sicilian Dragon: 6 g3 and 6 Be2 (without a later Be3)} (11. Nd5 a6 12. c3 Nd7 13. Bg5 h6 14. Be3 Nce5 15. Qd2 Kh7 16. Bd4 b5 17. f4 Nc4 18. Qf2 Bxd5 19. exd5 {1-0 (41) Carlsen,M (2851)-Petrosian,T (2611) chess.com INT 2016}) 11... Qc7 {[%emt 0:16:02]} 12. Nd5 {[%emt 0:10:31]} Bxd5 {[%emt 0:00:34]} 13. exd5 {[%emt 0:00:02]} Ne5 {[%emt 0:00:49]} 14. c3 {[%emt 0:00:19]} Rfe8 {[%emt 0:16:12]} 15. Qd2 $146 {[%emt 0:00:54]} ({Predecessor:} 15. Bb5 Red8 16. a4 a6 17. Bf1 Re8 18. a5 Nc4 19. Bc1 Qd7 20. Nd2 Nxd2 21. Qxd2 Ng4 {1-0 (54) Pfreundt,J (2248)-Powierski,E (2302) Bargteheide 2016}) 15... Nc4 {[%emt 0:07:39]} 16. Bxc4 {[%emt 0:02:46]} Qxc4 {[%emt 0:00:01]} 17. Rad1 {[%emt 0:00:23]} Ne4 {[%emt 0:00:05]} 18. Qf4 {[%emt 0:03:49]} Nxg5 {[%emt 0:02:26]} 19. Qxg5 {[%emt 0:00:09]} Bf6 {[%emt 0:00:12]} ({Black should play} 19... a5 $15) 20. Qd2 $11 {[%emt 0:05:43]} Qa6 {[%emt 0:03:27]} 21. a3 {[%emt 0:04:07]} Qb5 {[%emt 0:03:25]} 22. Qc2 {[%emt 0:06:15]} Qa4 {[%emt 0:12:00]} 23. Nd4 {[%emt 0:04:54]} Qxc2 {[%emt 0:00:39]} 24. Nxc2 {[%emt 0:00:01]} Rc5 {[%emt 0:02:45]} 25. Ne3 {[%emt 0:08:59]} Bg7 {[%emt 0:00:05]} 26. Nc2 {[%emt 0:00:02]} Bf6 {[%emt 0:00:03]} 27. Ne3 {[%emt 0:00:02]} Bg7 {[%emt 0:00:05]} 28. Nc2 {[%emt 0:00:02]} Bf6 {[%emt 0:00:06]} 29. Ne3 $11 {[%emt 0:00:01]} 1/2-1/2

[Event "21st Alekhine FIDE 2017"]
[Site "Voronezh"]
[Date "2017.06.18"]
[Round "7"]
[White "Garafutdinov, Ainur"]
[Black "Tatarintsev, Egor"]
[Result "1-0"]
[ECO "C03"]
[WhiteElo "1998"]
[BlackElo "2085"]
[Annotator "NA"]
[PlyCount "61"]
[EventDate "2017.??.??"]
[EventType "swiss"]
[EventCountry "RUS"]
[SourceTitle "playchess.com"]
[Source "ChessBase"]
[SourceQuality "1"]
[TimeControl "40/5400+30:1800+30"]

{[%evp 11,55,32,28,32767,32767,32767,34,8,34,0,25,0,0,0,0,0,5,7,20,-45,-37,-33,-33,-62,-12,-22,6,10,28,0,1,0,32767,-49,46,27,21,54,45,24,100,109,91,110,565,696]} 1. e4 {[%emt 0:04:41]} e6 {[%emt 0:00:11]} 2. d4 {[%emt 0:00:03]} d5 {[%emt 0:00:12]} 3. Nd2 {[%emt 0:00:04]} dxe4 {[%emt 0:00:13]} 4. Nxe4 {[%emt 0:00:06]} Bd7 {[%emt 0:00:09]} 5. c3 {[%emt 0:01:04]} Bc6 {[%emt 0:00:36]} 6. Ng3 {[%emt 0:05:19]} Nf6 {[%emt 0:00:41]} 7. Nf3 {[%emt 0:00:13]} Nbd7 {[%emt 0:00:50]} 8. Bd3 {[%emt 0:00:21]} Be7 {[%emt 0:03:41] C10: French with 3 Nc3: Unusual Black 3rd moves and 3...dxe4} 9. Bd2 {[%emt 0:01:00]} (9. Qe2 Bxf3 10. Qxf3 c6 11. Be3 Nd5 12. O-O-O Nxe3 13. fxe3 g6 14. Kb1 Qc7 15. h4 h5 16. Ne4 {1-0 (58) Zhang,P (2519)-Rustemov,A (2602) Bastia 2004}) 9... O-O {[%emt 0:01:23]} 10. Qe2 {[%emt 0:05:07]} Re8 $146 {[%emt 0:06:23]} (10... Bxf3 $5 11. Qxf3 c5 $11) ({Predecessor:} 10... Rb8 11. O-O-O Bxf3 12. Qxf3 c5 13. Bf4 Rc8 14. dxc5 Nd5 15. Kb1 Bxc5 16. Ne4 {1-0 (46) Atabayeva,G (1990)-Ning,K (2134) Chengdu 2017}) 11. O-O-O {[%emt 0:07:21]} Bxf3 {[%emt 0:01:55]} 12. Qxf3 {[%emt 0:04:03]} c5 {[%emt 0:02:22]} 13. Be3 {[%emt 0:02:19]} Qa5 {[%emt 0:13:24]} 14. Kb1 {[%emt 0:00:48]} Rec8 {[%emt 0:11:05]} 15. Ne4 {[%emt 0:03:46]} (15. dxc5 $11 Bxc5 16. Bxc5 Rxc5 17. Ne4) 15... c4 $1 {[%emt 0:01:52]} 16. Nxf6+ {[%emt 0:06:51]} Nxf6 {[%emt 0:02:01]} 17. Be4 {[%emt 0:01:40]} Nxe4 {[%emt 0:04:57]} 18. Qxe4 {[%emt 0:00:02]} Rc6 {[%emt 0:02:34]} 19. d5 {[%emt 0:04:33]} f5 {[%emt 0:00:14]} 20. Qc2 {[%emt 0:14:23]} Ra6 {[%emt 0:00:55]} 21. a3 {[%emt 0:01:50]} e5 {[%emt 0:19:57]} 22. Bc1 {[%emt 0:10:14]} (22. d6 $14 Bxd6 23. Qxf5 Bxa3 24. Qe4 (24. Rd7 Bf8 $11)) 22... Rf8 {[%emt 0:09:03]} 23. Rhe1 {[%emt 0:03:43]} Bd6 {[%emt 0:02:47]} 24. f4 $1 {[%emt 0:01:51]} e4 {[%emt 0:01:02] [#]} 25. g4 $1 {[%emt 0:00:19]} Rf6 {[%emt 0:01:19]} 26. gxf5 {[%emt 0:05:15]} Bxa3 {[%emt 0:00:40]} 27. Qxe4 {[%emt 0:00:23]} ({Reject} 27. bxa3 $6 Rfb6+ 28. Bb2 Rxb2+ 29. Qxb2 Rb6 $11) 27... Bxb2 $18 {[%emt 0:03:19]} (27... Qb5 $16) 28. Bxb2 {[%emt 0:00:44]} Qa2+ {[%emt 0:00:18]} 29. Kc1 {[%emt 0:00:07]} Qxb2+ {[%emt 0:00:17]} 30. Kxb2 {[%emt 0:00:04]} Rfb6+ {[%emt 0:00:05]} 31. Kc1 {[%emt 0:00:10]} 1-0

[Event "21st Alekhine FIDE 2017"]
[Site "Voronezh"]
[Date "2017.06.18"]
[Round "7"]
[White "Pavlova, Natalia"]
[Black "Kozlov, Sergej A"]
[Result "0-1"]
[ECO "A04"]
[WhiteElo "1954"]
[BlackElo "2072"]
[Annotator "NA"]
[PlyCount "114"]
[EventDate "2017.??.??"]
[EventType "swiss"]
[EventCountry "RUS"]
[SourceTitle "playchess.com"]
[Source "ChessBase"]
[SourceQuality "1"]
[TimeControl "40/5400+30:1800+30"]

{[%evp 15,112,35,65,32767,58,62,63,48,63,8,25,6,34,27,64,50,70,53,62,52,47,87,85,9,39,15,32767,3,0,0,125,122,122,115,143,135,115,102,110,34,41,32,25,36,38,27,32767,32767,32767,32767,32767,32767,32767,32767,32767,32767,32767,32767,32767,32767,32767,32767,32767,32767,32767,32767,32767,32767,32767,32767,32767,-55,32767,32767,32767,32767,32767,-8,32767,32767,32767,32767,32767,32767,32767,32767,-22,-214,32767,32767,32767,-1980,-12842,-1767,-12843,-29974,-29978,-12845,-29982]} 1. Nf3 e6 2. g3 f5 3. Bg2 Nf6 4. O-O d6 5. d4 Be7 6. b3 O-O 7. Bb2 Ne4 8. e3 Bf6 9. c4 Nc6 10. Nbd2 Nxd2 {A96: Classical Dutch: Fluid Systems: Early deviations} 11. Qxd2 e5 {LiveBook: 5 Games} 12. d5 Ne7 13. Rac1 $146 ({Predecessor:} 13. Qc2 Kh8 14. Nd2 e4 15. Bxf6 Rxf6 16. Rae1 c6 17. f3 cxd5 18. cxd5 Nxd5 19. fxe4 {1-0 (26) Cmilyte,V (2503)-Skripchenko,A (2468) Beijing 2011}) 13... Qe8 14. c5 e4 15. cxd6 cxd6 16. Nd4 Nxd5 17. Ba3 Be7 18. Qa5 Nf6 19. Qc7 (19. Nxf5 $14 Bd8 20. Rxc8 Rxc8 21. Qxa7) 19... Qd8 20. Nb5 Nd5 21. Qxd8 Rxd8 22. Rfd1 (22. g4 $5) 22... Be6 (22... a6 $1 $11 {remains equal.} 23. Nd4 Nf6) 23. Nd4 Kf7 {[#]} 24. Nxf5 $1 Bxf5 25. Rxd5 Ke6 26. Rcd1 Rac8 27. Rxf5 (27. R1d4 $16) 27... Kxf5 28. Bh3+ Kg6 29. Bxc8 Rxc8 30. Rd4 Rc2 31. Rxe4 Kf7 32. Ra4 Rxa2 33. Rxa7 Ke6 34. Ra4 b5 35. Re4+ Kd7 36. Bb4 Bf6 37. Kg2 Rb2 38. h4 Rxb3 39. g4 Bxh4 40. Rd4 Be7 41. e4 Kc6 42. f4 Rb2+ 43. Kf3 Rc2 44. Rd3 Rc4 45. Bc3 g6 46. f5 gxf5 47. gxf5 b4 48. Bg7 Rc1 49. Ke2 Rc2+ 50. Kf1 Bh4 51. Rh3 $2 (51. Rf3 $11) 51... Rf2+ 52. Kg1 Rf4 53. Rxh4 $2 (53. Kh2 $17) 53... Rxh4 54. Kf2 Rxe4 55. f6 Kd7 56. Kf3 Re5 57. Kf4 Ke6 0-1

[Event "21st Alekhine FIDE 2017"]
[Site "Voronezh"]
[Date "2017.06.18"]
[Round "7"]
[White "Rozmanov, Aleksandr"]
[Black "Chernov, Vladimir S"]
[Result "0-1"]
[ECO "B54"]
[WhiteElo "1928"]
[BlackElo "2045"]
[Annotator "NA"]
[PlyCount "98"]
[EventDate "2017.??.??"]
[EventType "swiss"]
[EventCountry "RUS"]
[SourceTitle "playchess.com"]
[Source "ChessBase"]
[SourceQuality "1"]
[TimeControl "40/5400+30:1800+30"]

{[%evp 16,97,47,34,32767,45,58,54,63,60,64,48,95,47,51,58,56,16,37,44,67,44,38,34,83,60,75,39,50,16,46,42,38,30,45,-53,0,0,17,-12,-6,-56,-48,32767,32767,-141,-168,-166,-141,-257,32767,-287,-287,-352,-156,-147,-162,-243,-228,-221,-315,-248,-244,-256,-258,-242,-281,-273,32767,32767,-191,-256,-201,-158,-245,-304,-484,-380,-510,-495,-1235,-586,-1723,-1203]} 1. e4 c5 2. Nf3 d6 3. d4 cxd4 4. Nxd4 Nf6 5. f3 g6 6. c4 Bg7 {B55: Sicilian: 2...d6 3 d4 cxd4 4 Nxd4 Nf6 5 f3} 7. Be3 Nc6 8. Qd2 (8. Nc3 O-O 9. Qd2 Bd7 10. Be2 Nxd4 11. Bxd4 a5 12. O-O Bc6 13. b3 Nd7 14. Bf2 Nc5 15. Rab1 Be5 16. Rfd1 e6 17. Bd4 Qe7 18. Bxe5 dxe5 19. Qe3 Na6 20. Rd2 Rfd8 21. Rbd1 Rxd2 22. Rxd2 Rd8 23. Rxd8+ Qxd8 24. g3 Nb4 25. Kf2 Nc2 26. Qd3 Qb6+ 27. Kg2 Ne1+ {0-1 (27) Banikas,H (2568)-Henriquez Villagra,C (2517) Doha 2016}) 8... Be6 9. Be2 Qc7 10. b3 O-O 11. Nc3 a6 12. O-O Rac8 13. Rac1 Qa5 14. Rfd1 Nxd4 15. Bxd4 Rfe8 16. Qe3 $146 ({Predecessor:} 16. Be3 Nd7 17. Nd5 Qxd2 18. Rxd2 Bxd5 19. Rxd5 Rc6 20. Rdd1 Nc5 21. Kf1 Rec8 22. Rb1 R6c7 23. Bd2 Rc6 24. Rdc1 R6c7 {1-0 (43) Huerga Leache,M (2446)-Sarralde Osua,R (2245) Zornotza 2010}) 16... Qh5 17. h3 Bh6 18. f4 Qh4 19. Rf1 Nh5 20. Bxh5 $1 Qxh5 21. Ne2 ({Better is} 21. a4 $16) 21... Qa5 22. g4 Bg7 ({Avoid the trap} 22... Qxa2 $2 23. Ra1 $18) 23. Bxg7 Kxg7 24. f5 Bd7 25. g5 (25. Nf4 $14) 25... gxf5 26. exf5 f6 27. Rf2 Qe5 28. Qxe5 dxe5 29. h4 Bc6 30. Rc3 Rcd8 31. Ng3 Rd4 32. Nh5+ (32. gxf6+ $17 exf6 33. Nh5+ Kf7 34. Rg3) 32... Kf7 33. Rh3 Rg4+ 34. Kh2 fxg5 (34... Rd8 $19 {has better winning chances.} 35. Ng3 Rd1) 35. hxg5 Rxg5 36. f6 (36. Ng3 $17 {was forced.}) 36... Reg8 37. fxe7+ Kxe7 38. Ng3 {[#]} h5 $1 39. Rf5 Rxf5 40. Nxf5+ Ke6 41. Ne3 Rg5 42. Rg3 Rxg3 43. Kxg3 Be4 44. Kh4 Bf3 45. b4 e4 46. b5 axb5 47. cxb5 Kd6 48. a4 Kc5 49. Nc2 $19 Kc4 0-1